{"text_format":"3","workbook":"xlsx","n_sheets":2,"sheets":["протокол","лист2"],"read":"whole","date_system":"1900"}

{"sheet":"протокол","index":0,"n_rows":29,"n_cols":10,"rows_kept":29,"merged":[[1,2,1,8],[2,0,2,10],[4,1,4,2],[4,3,4,4],[5,1,5,2],[5,3,5,4],[6,4,6,7]]}
[]
[]
["Протокол  школьного этапа Всероссийской (республиканской)  олимпиады школьников 2018/2019 учебного года по предмету _экология_____"]
[]
[null,"Этап олимпиады",null,"школьный"]
[null,"Предмет",null,"экология"]
[{"$nulls":4},"Участник олимпиады"]
[null,"№ п/п","Район","Полное наименование образовательного учреждения (по уставу)","Фамилия","Класс","Количество баллов","Статус (победитель/призер)","Максимально возможное кол-во баллов  по предмету мун.этапа","ФИО педагога, подготовившего, участника олимпиады)"]
[null,1,"Рыбно-Слободский район ","МБОУ \"Рыбно-Слободская гимназия №1\"","Мингарипова ","5А",12.5,"победитель",20,"Хабибуллина Г.А."]
[null,2,{"$f":"C9","v":"Рыбно-Слободский район "},{"$f":"D9","v":"МБОУ \"Рыбно-Слободская гимназия №1\""},"Гончурина ","5А",11.5,"призёр",20,{"$f":"$J$9","v":"Хабибуллина Г.А."}]
[null,3,"Рыбно-Слободский район ","МБОУ \"Рыбно-Слободская гимназия №1\"","Хайрутдинов ",{"$f":"$F$10","v":"5А"},8.5,{"$f":"$H$10","v":"призёр"},{"$f":"$I$10","v":20},{"$f":"$J$9","v":"Хабибуллина Г.А."}]
[null,4,"Рыбно-Слободский район ",{"$f":"$D$11","v":"МБОУ \"Рыбно-Слободская гимназия №1\""},"Гизутдинов ","6А",14,{"$f":"H9","v":"победитель"},20,"Сафина Н.К."]
[null,5,"Рыбно-Слободский район ","МБОУ \"Рыбно-Слободская гимназия №1\"","Басаркина ","6А",10,"призёр",20,{"$f":"$J$12","v":"Сафина Н.К."}]
[null,6,"Рыбно-Слободский район ","МБОУ \"Рыбно-Слободская гимназия №1\"","Лылова ","6А",9,"призёр",20,{"$f":"$J$12","v":"Сафина Н.К."}]
[null,7,"Рыбно-Слободский район ","МБОУ \"Рыбно-Слободская гимназия №1\"","Нечаева ","7В",13,"победитель",23,{"$f":"$J$12","v":"Сафина Н.К."}]
[null,8,"Рыбно-Слободский район ","МБОУ \"Рыбно-Слободская гимназия №1\"","Гайнуллина ","7Б",12,"призёр",23,"Сафина Н.К."]
[null,9,"Рыбно-Слободский район ","МБОУ \"Рыбно-Слободская гимназия №1\"","Абдрахманова ","7А",8,"призёр",23,"Сафина Н.К."]
[null,10,"Рыбно-Слободский район ","МБОУ \"Рыбно-Слободская гимназия №1\"","Нагимуллина ","8А",13,"победитель",23,"Сафина Н.К."]
[null,11,"Рыбно-Слободский район ","МБОУ \"Рыбно-Слободская гимназия №1\"","Гиззатуллин ","8 А",12,"призёр",23,"Сафина Н.К."]
[null,12,"Рыбно-Слободский район ","МБОУ \"Рыбно-Слободская гимназия №1\"","Маямсина ","8А",10,"призёр",23,"Сафина Н.К."]
[null,13,"Рыбно-Слободский район ","МБОУ \"Рыбно-Слободская гимназия №1\"","Хабибуллина ","9А",13,"победитель",23,"Сафина Н.К."]
[null,14,"Рыбно-Слободский район ","МБОУ \"Рыбно-Слободская гимназия №1\"","Гречанюк ","9А",12,"призёр",23,"Сафина Н.К."]
[null,15,"Рыбно-Слободский район ","МБОУ \"Рыбно-Слободская гимназия №1\"","Крюкова ","9А",10,"призёр",23,"Сафина Н.К."]
[null,16,"Рыбно-Слободский район ","МБОУ \"Рыбно-Слободская гимназия №1\"","Сунгатуллин ","10Б",14,"победитель",26,"Сафина Н.К."]
[null,17,"Рыбно-Слободский район ","МБОУ \"Рыбно-Слободская гимназия №1\"","Альмиева ","10Б",13,"призёр",26,"Сафина Н.К."]
[null,18,"Рыбно-Слободский район ","МБОУ \"Рыбно-Слободская гимназия №1\"","Зайнуллина ","10 Б",9,"призёр",26,"Сафина Н.К."]
[null,19,"Рыбно-Слободский район ","МБОУ \"Рыбно-Слободская гимназия №1\"","Садыкова ","11А",14,"победитель",26,"Сафина Н.К."]
[null,20,"Рыбно-Слободский район ","МБОУ \"Рыбно-Слободская гимназия №1\"","Кадырова ","11Б",13,"призёр",26,"Сафина Н.К."]
[null,21,"Рыбно-Слободский район ","МБОУ \"Рыбно-Слободская гимназия №1\"","Зайнуллина ","11А",10,"призёр",26,"Сафина Н.К."]

{"sheet":"лист2","index":1,"n_rows":0,"n_cols":0,"rows_kept":0}